bitfinex-derivatives/quotes_ETHF0:USTF0_20260207
["timestamp","ask_amount","ask_price","bid_price","bid_amount"]
[1770499907150,11.27647956,2111.4,2110.1,14.34463937]
[1770499907338,11.27647956,2111.4,2110.1,11.531753]
[1770499908048,11.28154325,2111.4,2110.1,11.531753]
[1770499910945,11.51851325,2111.4,2110.1,11.531753]
[1770499911146,11.51346956,2111.2,2109.6,11.531753]
[1770499911553,11.27647956,2111.0,2109.6,11.531753]
[1770499911950,11.27647956,2110.8,2109.6,11.531753]
[1770499918544,11.27647956,2110.8,2109.3,11.531753]
[1770499918744,11.27647956,2110.5,2109.3,11.531753]
[1770499924044,11.51354956,2110.5,2109.3,11.531753]
[1770499924249,11.27647956,2110.1,2109.1,11.53637415]
[1770499928552,11.27647956,2110.1,2109.1,0.00462115]
[1770499929360,11.27647956,2110.1,2109.1,10.69553209]
[1770499931056,11.27647956,2110.1,2109.3,10.69091094]
[1770499933861,11.01927537,2110.6,2109.5,11.38918817]
[1770499934068,11.01927537,2110.6,2109.5,14.20207454]
[1770499935970,11.01927537,2110.6,2109.7,11.38918817]
[1770499936175,11.01927537,2110.6,2109.9,11.38918817]
[1770499936966,11.01927537,2111.2,2109.9,11.38918817]
[1770499938274,11.25626537,2111.2,2109.9,11.38918817]
[1770499938665,11.02433906,2111.4,2110.2,11.38918817]
[1770499940865,11.01927537,2111.2,2110.0,11.38918817]
[1770499941375,11.01927537,2110.9,2109.6,2.81288637]
[1770499941568,11.25630537,2110.9,2109.5,14.20207454]
[1770499941874,11.25630537,2110.9,2109.7,11.38918817]
[1770499945279,11.25631537,2110.8,2109.7,11.38918817]
[1770499951484,11.01927537,2110.3,2109.5,11.38918817]
[1770499951677,11.01927537,2110.3,2109.1,2.81040887]
[1770499951879,11.01927537,2110.3,2109.2,11.38918817]
[1770499952686,11.01927537,2109.8,2108.8,11.38918817]
[1770499953780,11.02319319,2109.8,2108.8,11.39358617]
[1770499953973,0.00391782,2109.8,2108.8,11.39358617]
[1770499954687,11.01927537,2110.2,2109.0,11.38918817]
[1770499955882,11.02330425,2110.2,2109.0,11.38918817]
[1770499966292,11.02330425,2110.2,2109.0,14.19497589]
[1770499968591,11.02330425,2110.2,2109.0,11.38918817]
[1770499969389,11.02330425,2110.2,2109.0,14.19497589]
[1770499969694,11.26040425,2110.2,2109.0,11.38918817]
[1770499971090,11.07857454,2110.1,2109.0,11.38918817]
[1770499972994,11.07857454,2110.1,2109.2,11.53987898]
[1770499974599,11.07857454,2110.1,2109.2,14.3456667]
[1770499976097,11.07857454,2110.1,2109.3,4.79161888]
[1770499976399,11.07857454,2110.1,2109.4,11.53987898]
[1770499976599,11.08260342,2110.2,2109.4,11.53987898]
[1770499977395,11.08260342,2110.2,2109.4,14.3456667]
[1770499977596,11.08260342,2110.2,2109.4,11.53987898]
[1770499978300,11.08260342,2110.2,2109.4,14.3456667]
[1770499979198,11.08260342,2110.2,2109.4,11.53987898]
[1770499979500,11.08260342,2110.2,2109.4,14.3456667]
[1770499979702,0.00402888,2110.2,2109.4,14.3456667]
[1770499979903,11.31562454,2110.7,2109.6,14.3456667]
[1770499980603,11.31562454,2110.7,2109.8,11.53987898]
[1770499980805,11.32115646,2110.7,2109.8,11.53987898]
[1770499981598,11.07857454,2110.5,2109.5,14.3456667]
[1770499981902,11.07857454,2110.5,2109.4,11.53987898]
[1770499983301,11.07857454,2110.4,2109.2,14.3456667]
[1770499984503,11.31565454,2110.4,2109.2,14.3456667]
[1770499984699,11.07857454,2110.3,2109.2,14.3456667]
[1770499987109,10.56339561,2110.0,2109.2,11.53987898]
[1770499987612,10.56339561,2110.0,2108.9,10.58358629]
[1770499987907,10.80051561,2110.0,2108.9,10.58358629]
[1770499989013,10.56339561,2109.9,2108.9,10.58358629]
[1770499989902,10.56339561,2109.8,2108.9,10.58358629]
[1770499990101,10.56339561,2109.8,2108.8,10.58798429]
[1770499992513,17.61663171,2109.8,2108.8,0.004398]
[1770499992713,11.21206612,2109.7,2108.8,0.004398]
[1770499993806,11.21206612,2109.7,2108.8,10.99533887]
[1770499996414,11.21206612,2109.7,2108.8,0.004398]
[1770499996618,11.21206612,2109.7,2108.8,10.99533887]
[1770500001817,11.21206612,2109.7,2108.3,10.99094087]
[1770500001818,11.21206612,2109.5,2108.3,10.99094087]
[1770500002019,11.21206612,2109.5,2108.4,10.99094087]
[1770500002814,11.21206612,2109.5,2108.4,10.9970362]
[1770500003524,11.44924612,2109.5,2108.4,10.9970362]
[1770500011630,11.21206612,2109.9,2108.6,10.99094087]
[1770500012322,11.21206612,2109.9,2108.8,10.99094087]
[1770500019227,7.0532361,2110.4,2108.8,10.99094087]
[1770500019428,10.6123141,2110.3,2109.0,10.70621176]
[1770500019821,10.6123141,2110.3,2109.1,10.70621176]
[1770500021627,0.00553192,2110.7,2109.2,15.43966445]
[1770500021830,10.6123141,2110.6,2109.4,10.70621176]
[1770500024025,10.6123141,2110.6,2109.6,10.70621176]
[1770500025231,0.00553192,2110.7,2109.6,10.70621176]
[1770500025730,10.61784602,2110.7,2109.6,10.70621176]
[1770500030436,10.61784602,2110.7,2109.4,10.70621176]
[1770500031237,10.85489602,2110.7,2109.4,10.70621176]
[1770500034641,10.61784602,2110.7,2109.4,10.70621176]
[1770500036741,12.32157702,2110.4,2108.9,10.70621176]
[1770500038030,10.6123141,2110.1,2108.9,10.70621176]
[1770500038228,10.8494341,2110.1,2108.9,10.70621176]
[1770500039636,10.6123141,2109.9,2108.7,10.70621176]
[1770500041348,10.6123141,2109.8,2108.5,10.70621176]
[1770500041539,17.6655502,2109.8,2108.4,10.71230709]
[1770500041734,6.21818292,2110.0,2108.4,0.00609533]
[1770500041735,10.6123141,2109.1,2108.4,0.00609533]
[1770500041943,10.6123141,2108.9,2107.8,10.70621176]
[1770500042245,10.6123141,2108.9,2107.6,10.70621176]
[1770500042746,10.6123141,2108.7,2107.4,10.70621176]
[1770500042952,10.6123141,2108.7,2107.6,0.00439322]
[1770500043343,10.61842374,2108.9,2107.6,10.71060498]
[1770500043843,0.00610964,2108.9,2107.8,10.70621176]
[1770500044047,10.61842374,2108.9,2107.8,10.70621176]
[1770500044246,0.00610964,2108.9,2107.8,10.70621176]
[1770500044442,0.23716,2109.7,2107.8,10.70621176]
[1770500044443,10.6123141,2110.0,2108.0,10.70621176]
[1770500044642,10.6123141,2110.0,2108.0,12.17839468]
[1770500045145,10.6123141,2110.0,2108.0,10.70621176]
[1770500045447,10.8535946,2110.0,2108.0,10.70621176]
[1770500046241,10.82192977,2109.7,2108.0,10.70621176]
[1770500046449,10.82192977,2109.2,2107.8,11.25575089]
[1770500058965,11.08614162,2109.0,2107.8,11.25575089]
[1770500060461,11.08614162,2109.3,2107.8,11.25575089]
[1770500065257,11.08614162,2108.9,2107.7,11.08570198]
[1770500071174,8.42201761,2109.2,2107.9,8.59738126]
[1770500071175,11.08614162,2109.2,2107.9,8.59738126]
[1770500071962,11.08614162,2109.2,2107.9,11.40316898]
[1770500072167,11.08614162,2109.2,2108.0,8.71164247]
[1770500075267,11.08614162,2109.2,2108.2,8.90531088]
[1770500075667,11.08614162,2109.2,2108.2,8.40531088]
[1770500076570,11.08614162,2109.2,2108.0,11.15749764]
[1770500076778,11.08614162,2109.2,2108.0,8.35170992]
[1770500077577,11.08614162,2109.2,2108.1,8.35170992]
[1770500078073,11.08614162,2109.2,2108.2,8.33657208]
[1770500081174,11.31179472,2109.1,2108.0,8.38004427]
[1770500081373,11.31179472,2109.0,2108.0,8.38004427]
[1770500092492,11.31179472,2108.9,2107.9,8.35595166]
[1770500092692,11.31179472,2108.8,2107.9,8.35595166]
[1770500102693,11.31179472,2108.9,2108.0,8.35068909]
[1770500102895,15.5251122,2109.4,2108.3,9.1219851]
[1770500103097,11.31179472,2109.2,2108.3,9.1219851]
[1770500107314,11.31179472,2109.2,2108.4,8.9388506]
[1770500107515,11.31179472,2109.2,2108.3,8.9388506]
[1770500111718,10.7448825,2109.4,2108.3,8.9388506]
[1770500112110,10.7448825,2109.4,2108.4,8.89782685]
[1770500113112,10.7448825,2109.4,2108.3,11.71471751]
[1770500113320,10.7448825,2109.4,2108.4,8.89782685]
[1770500117021,10.7448825,2109.4,2108.1,2.81689066]
[1770500117220,10.7448825,2109.3,2108.1,8.98836294]
[1770500118716,10.7448825,2109.3,2108.2,8.9742792]
[1770500119019,10.7448825,2109.3,2108.3,8.9742792]
[1770500131833,10.7448825,2109.2,2108.3,8.9742792]
[1770500134739,10.7448825,2109.2,2108.4,8.84084391]
[1770500135432,11.2201643,2109.1,2108.1,2.81689066]
[1770500135631,11.2201643,2109.1,2108.0,13.01236131]
[1770500135632,11.2201643,2109.0,2108.0,11.63066596]
[1770500135939,11.2201643,2109.0,2108.1,8.78338144]
[1770500138932,12.17554166,2109.0,2108.0,8.74853194]
[1770500139341,11.2201643,2108.9,2108.0,8.74853194]
[1770500140540,11.2201643,2108.9,2107.9,8.78071933]
[1770500142035,11.2201643,2108.9,2107.8,11.49220386]
[1770500142238,11.2201643,2108.9,2107.8,8.6753132]
[1770500142638,11.2201643,2108.9,2107.9,8.6753132]
[1770500144844,11.2201643,2108.9,2108.0,8.6478212]
[1770500146947,11.2201643,2108.9,2107.8,11.47576094]
[1770500147245,11.2201643,2108.9,2107.8,8.65887028]
[1770500147645,11.2201643,2108.9,2107.9,8.65887028]
[1770500149750,11.2201643,2108.9,2107.8,8.69122716]
[1770500150140,11.2201643,2108.8,2107.8,8.69122716]
[1770500154047,11.2201643,2108.8,2108.0,8.84020821]
[1770500154240,11.2201643,2108.8,2108.1,8.84020821]
[1770500157954,11.2201643,2109.1,2108.1,8.84020821]
[1770500158456,11.2201643,2109.1,2108.2,8.95042266]
[1770500159456,11.2201643,2108.7,2108.1,8.95042266]
[1770500160558,11.2201643,2108.9,2108.1,8.95042266]
[1770500160859,11.2201643,2108.9,2108.1,9.90573963]
[1770500161060,11.2201643,2109.2,2108.3,8.96527245]
[1770500161558,11.2201643,2109.1,2108.3,8.96527245]
[1770500165463,5.681774,2109.2,2108.3,8.96527245]
[1770500165662,16.53307344,2109.6,2108.6,9.14556675]
[1770500165962,10.85129944,2109.5,2108.6,9.14556675]
[1770500166163,11.80661641,2109.5,2108.6,9.14556675]
[1770500166358,10.85129944,2109.5,2108.6,9.14556675]
[1770500166561,2.83848023,2109.2,2108.6,9.14556675]
[1770500167355,2.83848023,2109.3,2108.6,9.14556675]
[1770500167565,2.83848023,2109.1,2108.6,9.14556675]
[1770500168665,7.10508058,2109.0,2108.6,9.14556675]
[1770500168864,3.49546169,2108.9,2108.6,8.20156675]
[1770500169768,2.83848023,2108.8,2108.6,8.20156675]
[1770500170671,2.83848023,2108.9,2108.6,8.20156675]
[1770500171471,14.3730787,2108.9,2108.6,8.20156675]
[1770500171771,11.53459847,2108.6,2108.0,3.65605848]
[1770500171965,2.83489925,2108.2,2108.0,3.65605848]
[1770500172271,2.83902207,2108.2,2108.0,3.65605848]
[1770500172663,2.83489925,2108.1,2108.0,3.65605848]
[1770500172862,2.83489925,2108.1,2107.8,3.66115781]
[1770500173069,2.83489925,2107.9,2107.8,3.66115781]
[1770500173365,7.10309459,2108.4,2107.4,1.47355814]
[1770500173366,5.67051297,2108.4,2107.4,1.47355814]
[1770500173671,11.55710567,2108.8,2107.4,1.71096814]
[1770500173873,36.8240205,2108.7,2107.4,1.71096814]
[1770500174072,11.55710567,2108.7,2107.4,1.71096814]
[1770500174267,21.8240205,2108.7,2107.4,1.71096814]
[1770500174662,21.82858379,2108.7,2107.4,1.71096814]
[1770500175071,11.55710567,2108.6,2107.4,1.71096814]
[1770500175665,21.82858379,2108.7,2107.4,1.71096814]
[1770500175866,11.55710567,2108.6,2107.4,1.71096814]
[1770500177776,11.55710567,2108.6,2107.7,0.01298069]
[1770500177972,10.27147812,2108.7,2107.7,0.01298069]
[1770500178166,10.25849743,2108.7,2107.7,0.01298069]
[1770500178769,9.48732471,2108.7,2107.7,0.01298069]
[1770500178973,9.48732471,2108.7,2107.7,0.23738]
[1770500179364,7.57672285,2108.7,2108.1,0.23734]
[1770500179672,11.55710567,2109.4,2108.3,0.0262247]
[1770500179873,11.54399332,2109.3,2108.3,0.0262247]
[1770500180270,11.54399332,2109.1,2108.3,0.0262247]
[1770500180471,11.54925441,2109.1,2108.3,0.0262247]
[1770500180671,26.54925441,2109.1,2108.3,0.0262247]
[1770500180870,4.23127627,2109.0,2108.3,0.0262247]
[1770500181069,4.23127627,2108.9,2108.3,0.0262247]
[1770500181274,11.54399332,2109.0,2108.3,0.0262247]
[1770500181477,4.23155394,2108.9,2108.3,0.0262247]
[1770500181774,11.54399332,2109.0,2108.3,0.0262247]
[1770500182072,19.23155394,2108.9,2108.3,0.0262247]
[1770500182273,15.0,2108.9,2108.3,0.0262247]
[1770500183176,26.53459847,2108.9,2108.3,0.0262247]
[1770500184878,4.53330139,2108.8,2108.3,0.0262247]
[1770500185080,3.45381253,2108.7,2108.3,0.0262247]
[1770500185380,15.0,2108.9,2108.3,0.0262247]
[1770500185579,26.53459847,2108.9,2108.3,0.0262247]
[1770500185981,11.53459847,2108.8,2107.7,0.17542134]
[1770500186174,11.53459847,2108.6,2107.7,0.17542134]
[1770500186574,26.53459847,2108.5,2107.7,0.17542134]
[1770500186874,11.53459847,2108.4,2107.7,0.17542134]
[1770500188276,26.53459847,2108.3,2107.7,0.17542134]
[1770500188479,11.53459847,2108.3,2107.7,0.17542134]
[1770500188882,11.53459847,2108.1,2107.7,0.17542134]
[1770500189382,25.76328902,2108.1,2107.7,0.17542134]
[1770500191379,11.53459847,2108.0,2107.6,0.00954245]
[1770500191780,25.78150718,2107.9,2107.6,0.00439322]
[1770500192084,11.10248405,2107.9,2107.6,0.00439322]
[1770500192782,11.53459847,2107.8,2107.2,0.45891066]
[1770500192982,10.45464525,2107.8,2107.2,0.45891066]
[1770500193176,14.22869055,2107.7,2107.2,0.45891066]
[1770500193779,25.76328902,2107.7,2107.2,0.46376593]
[1770500195883,5.67365566,2108.1,2107.2,0.24229527]
[1770500195884,17.23834028,2108.1,2107.2,0.24229527]
[1770500196085,24.29017119,2108.0,2107.2,0.24229527]
[1770500196985,16.18999863,2107.9,2107.2,0.24229527]
[1770500197283,11.56468462,2107.9,2107.2,0.24229527]
[1770500197484,11.56468462,2107.9,2107.3,0.95561129]
[1770500198884,10.79328011,2107.9,2107.4,0.77131943]
[1770500199379,23.51876668,2107.9,2107.4,0.77131943]
[1770500199579,12.72548657,2107.9,2107.4,0.77131943]
[1770500199783,11.1790249,2108.0,2107.6,0.808714]
[1770500199983,23.90451147,2108.0,2107.6,0.808714]
[1770500200282,11.16032762,2108.1,2107.6,0.808714]
[1770500200485,4.60483198,2108.0,2107.6,0.808714]
[1770500200687,11.16032762,2108.0,2107.6,0.808714]
[1770500200881,23.88581419,2108.0,2107.6,0.808714]
[1770500201584,23.88581419,2108.0,2107.4,0.808714]
[1770500203786,11.22757659,2107.9,2107.3,0.91055057]
[1770500203985,11.22757659,2107.9,2107.4,0.67313057]
[1770500205391,11.22757659,2107.9,2107.3,0.23742]
[1770500205593,11.22811933,2107.7,2107.4,0.67313057]
[1770500205784,10.14814475,2107.7,2107.4,0.67313057]
[1770500206088,42.52157558,2108.2,2107.2,0.00485527]
[1770500206089,10.86677789,2107.5,2107.2,0.00485527]
[1770500206293,10.42117235,2107.5,2106.9,1.1692878]
[1770500206493,10.64138035,2107.3,2106.9,3.34964561]
[1770500206795,2.93893859,2107.3,2107.0,10.50121756]
[1770500207092,19.64517858,2107.4,2107.0,10.50121756]
[1770500207293,19.45757328,2107.4,2107.0,10.50689763]
[1770500207493,8.59079539,2107.4,2107.0,10.50689763]
[1770500207694,8.41051878,2107.4,2107.0,10.50689763]
[1770500207896,10.86677789,2107.9,2107.2,10.73386194]
[1770500208195,15.35109607,2107.8,2107.2,10.73386194]
[1770500208493,10.86677789,2107.8,2107.2,10.73386194]
[1770500208894,10.0953186,2107.8,2107.2,10.73386194]
[1770500209091,10.10022446,2107.8,2107.2,10.73386194]
[1770500211192,0.00490586,2107.8,2107.2,10.97129194]
[1770500211498,10.87168375,2107.8,2107.2,10.97129194]
[1770500212686,10.87168375,2107.8,2107.2,0.23743]
[1770500213399,10.87168375,2107.8,2107.2,10.97129194]
[1770500214287,10.86677789,2107.6,2107.2,0.23743]
[1770500214492,10.87168375,2107.8,2107.3,10.73386194]
[1770500214691,10.87168375,2107.8,2107.2,0.23743]
[1770500214891,10.87168375,2107.8,2107.2,10.97129194]
[1770500217100,10.87168375,2107.8,2107.2,0.23743]
[1770500217593,10.87168375,2107.8,2107.2,10.97129194]
[1770500219198,10.87168375,2107.8,2107.2,0.23743]
[1770500221399,10.86677789,2107.6,2106.8,10.73386194]
[1770500221598,10.86677789,2107.5,2106.8,10.73386194]
[1770500222397,10.86677789,2107.4,2106.8,10.73933288]
[1770500222595,9.78655283,2107.4,2106.8,0.00547094]
[1770500222796,52.30812841,2107.4,2106.8,0.00547094]
[1770500222998,10.86677789,2107.3,2106.6,20.88098253]
[1770500223193,10.86677789,2107.3,2106.6,10.14712059]
[1770500223396,10.86677789,2107.2,2106.6,9.20859153]
[1770500223595,10.86677789,2107.2,2106.6,8.97109153]
[1770500224097,10.86677789,2107.2,2106.6,9.27604678]
[1770500224401,10.86677789,2107.2,2106.6,8.97446287]
[1770500224602,10.86677789,2107.1,2106.6,0.00337134]
[1770500224796,10.86677789,2107.1,2106.1,10.73386194]
[1770500225792,10.86677789,2107.1,2106.1,10.73972276]
[1770500225996,10.86677789,2107.1,2106.4,10.99679338]
[1770500226203,11.18667282,2107.3,2106.4,11.23431338]
[1770500227698,11.18667282,2107.3,2106.6,10.99679338]
[1770500227897,11.18667282,2107.4,2106.6,10.99679338]
[1770500232008,10.4522214,2107.2,2106.6,10.99679338]
[1770500232409,10.4522214,2107.4,2106.6,10.99679338]
[1770500232608,14.71479764,2107.3,2106.6,10.99679338]
[1770500232808,10.4522214,2107.3,2106.6,10.99679338]
[1770500234812,10.4622214,2107.3,2106.6,10.99679338]
[1770500238614,10.4622214,2107.3,2106.5,11.21758625]
[1770500239315,10.4622214,2107.3,2106.1,11.284617]
[1770500239521,10.4522214,2106.8,2106.1,0.30455075]
[1770500239720,10.4522214,2106.6,2106.1,11.284617]
[1770500246727,10.4522214,2107.0,2106.1,11.522177]
[1770500246926,10.4522214,2106.8,2106.1,11.522177]
[1770500247530,10.4522214,2106.8,2106.1,0.54211075]
[1770500248725,10.4522214,2106.8,2106.1,11.522177]
[1770500249326,10.4522214,2106.6,2106.1,11.522177]
[1770500249727,10.4522214,2106.6,2106.1,0.54211075]
[1770500250129,10.4522214,2106.6,2106.1,11.522177]
[1770500251419,10.4522214,2106.6,2106.1,0.24342082]
[1770500253624,13.29005689,2107.0,2106.1,12.48270936]
[1770500253929,10.4522214,2107.0,2106.3,10.98006625]
[1770500254127,10.4522214,2107.0,2106.3,11.21760625]
[1770500254427,10.4522214,2107.1,2106.3,11.21760625]
[1770500254628,10.4522214,2106.9,2106.3,11.21760625]
[1770500255025,13.30005689,2107.3,2106.5,10.98006625]
[1770500255230,10.4522214,2107.1,2106.5,10.98006625]
[1770500256225,10.89474128,2106.9,2106.2,11.51888993]
[1770500257522,10.89474128,2107.1,2106.4,11.51888993]
[1770500257832,10.89474128,2106.9,2106.4,11.51888993]
[1770500258529,10.89474128,2107.2,2106.4,11.51888993]
[1770500260534,10.89474128,2107.0,2106.4,11.51888993]
[1770500265134,9.81434726,2107.0,2106.4,11.51888993]
[1770500267840,9.81434726,2107.0,2106.3,0.23754]
[1770500268032,9.81434726,2107.0,2106.3,11.75642993]
[1770500269145,9.81434726,2107.0,2106.3,0.23754]
[1770500269444,10.89474128,2106.8,2106.3,0.23754]
[1770500270237,13.73257677,2107.0,2106.3,11.75642993]
[1770500270438,10.89474128,2107.4,2106.7,11.51888993]
[1770500270643,10.90474128,2107.3,2106.7,11.51888993]
[1770500273440,10.90474128,2107.3,2106.7,12.47494918]
[1770500280945,8.88042285,2107.3,2106.7,12.47494918]
[1770500281145,42.52157558,2107.7,2107.1,0.95605925]
[1770500281346,10.89964714,2107.8,2107.2,11.51888993]
[1770500282444,10.89474128,2107.6,2107.2,11.51888993]
[1770500285350,10.89964714,2107.8,2107.2,11.51888993]
[1770500286945,10.89964714,2107.8,2107.4,11.5547668]
[1770500290154,10.89964714,2107.8,2107.2,11.7921968]
[1770500291956,10.59624744,2108.2,2107.6,10.85254661]
[1770500292156,10.59624744,2108.0,2107.6,10.85254661]
[1770500292853,10.59971755,2108.0,2107.6,10.85753321]
[1770500293754,0.00347011,2108.0,2107.6,10.85753321]
[1770500294257,10.59624744,2108.5,2107.6,11.09492321]
[1770500294450,10.59624744,2108.3,2107.6,11.09492321]
[1770500295257,10.600317,2108.3,2107.6,11.09492321]
[1770500295457,10.600317,2108.3,2107.8,10.85254661]
[1770500299455,10.600317,2108.3,2107.0,0.23746]
[1770500299456,10.59624744,2107.8,2107.0,0.23746]
[1770500299856,10.59624744,2107.8,2107.0,11.09000661]
[1770500300559,10.59624744,2107.8,2107.0,11.0960724]
[1770500301958,10.59624744,2107.8,2107.0,12.05213165]
[1770500305160,10.59624744,2107.8,2107.2,11.80860586]
[1770500305358,10.59624744,2108.1,2107.2,12.04604586]
[1770500305560,10.59624744,2107.9,2107.2,12.04604586]
[1770500311880,10.59624744,2108.0,2107.4,11.80860586]
[1770500312179,10.59624744,2108.0,2107.4,12.04601586]
[1770500312375,4.05287119,2107.9,2107.0,0.00606579]
[1770500312680,10.59624744,2107.2,2106.3,11.09008661]
[1770500312880,10.59624744,2107.2,2106.5,10.85254661]
[1770500313070,10.59624744,2107.0,2106.3,0.23754]
[1770500313273,10.59624744,2107.0,2106.3,11.09008661]
[1770500313473,10.59624744,2107.0,2106.3,11.09526968]
[1770500313874,5.67365566,2108.2,2107.2,9.90854661]
[1770500314074,10.59624744,2107.6,2106.4,5.47483186]
[1770500314380,16.2699031,2107.4,2106.3,0.00518307]
[1770500314680,10.59624744,2107.2,2106.3,0.00518307]
[1770500315278,10.59624744,2107.2,2106.3,10.85772968]
[1770500317376,10.59624744,2107.2,2106.3,0.00518307]
[1770500317581,10.59624744,2107.2,2106.0,0.23757]
[1770500318578,10.59624744,2107.2,2106.0,0.24108981]
[1770500321274,10.59624744,2107.2,2106.0,11.23250393]
[1770500321878,10.59624744,2107.2,2106.0,11.53860817]
[1770500325782,10.59624744,2107.2,2106.0,0.30962405]
[1770500326183,10.59624744,2107.2,2106.0,11.30103817]
[1770500326786,10.59624744,2107.2,2106.0,0.00351981]
[1770500327084,16.26708722,2107.0,2105.4,0.299665]
[1770500327277,10.59343156,2106.8,2105.4,11.29107912]
[1770500327481,10.59343156,2106.8,2105.4,10.99141412]
[1770500328284,10.59677464,2106.8,2105.4,10.99644647]
[1770500328485,10.59343156,2106.2,2104.2,2.82544949]
[1770500328683,10.59343156,2105.5,2104.5,10.99141412]
[1770500328989,10.59343156,2106.3,2104.5,10.99141412]
[1770500329189,10.59343156,2106.3,2104.7,10.99141412]
[1770500329490,10.59343156,2106.3,2104.7,10.99660372]
[1770500330287,10.59343156,2106.3,2104.9,10.99141412]
[1770500333087,10.59343156,2106.3,2104.7,0.0051896]
[1770500333088,10.59343156,2106.3,2104.7,10.99660372]
[1770500333394,10.59343156,2106.1,2104.7,10.99660372]
[1770500342201,10.59343156,2106.0,2104.7,10.99660372]
[1770500342403,10.59343156,2105.9,2104.7,10.99660372]
[1770500343107,10.59343156,2105.8,2104.7,10.99660372]
[1770500346897,10.59343156,2105.8,2104.7,0.0051896]
[1770500347104,13.35826721,2105.1,2103.6,0.23784]
[1770500347298,10.54976575,2104.6,2103.1,10.47162843]
[1770500347604,10.54976575,2104.2,2103.3,10.47162843]
[1770500348392,10.5532515,2104.2,2103.3,10.4767347]
[1770500349705,10.5532515,2104.2,2103.3,0.00510627]
[1770500350402,10.5532515,2104.2,2103.3,10.4767347]
[1770500350905,10.5532515,2104.2,2103.3,0.00510627]
[1770500351807,10.5532515,2104.2,2103.3,9.33528515]
[1770500353798,9.28743104,2104.4,2103.3,9.33528515]
[1770500354808,9.29356042,2104.4,2103.3,9.33528515]
[1770500355802,9.29356042,2104.4,2103.3,9.57316515]
[1770500357309,0.00612938,2104.4,2103.5,9.33017888]
[1770500358107,0.00612938,2104.4,2103.5,9.56803888]
[1770500358807,0.00612938,2104.4,2103.7,9.33017888]
[1770500359011,9.28743104,2104.8,2103.7,9.33017888]
[1770500359812,9.28743104,2104.8,2103.7,9.56800888]
[1770500360012,9.29260411,2104.8,2103.7,9.56800888]
[1770500360211,9.29260411,2104.8,2103.9,9.33017888]
[1770500361305,0.73560411,2104.8,2103.8,9.33017888]
[1770500362913,7.34071459,2105.6,2104.6,9.33017888]
[1770500362914,9.28743104,2105.6,2104.6,9.33017888]
[1770500363109,9.28743104,2105.6,2105.0,9.33017888]
[1770500363416,9.28743104,2106.1,2105.2,9.33017888]
[1770500363914,9.28743104,2106.1,2105.2,9.57125951]
[1770500363915,9.29204479,2106.1,2105.2,9.57125951]
[1770500364116,9.28743104,2106.3,2105.4,9.56781888]
[1770500364315,9.28743104,2106.3,2105.4,9.33017888]
[1770500364515,9.28743104,2106.3,2105.2,9.33359951]
[1770500365215,9.29221827,2106.3,2105.2,9.33359951]
[1770500365611,9.28743104,2106.0,2104.6,9.33017888]
[1770500366209,9.28743104,2106.0,2104.9,9.33017888]
[1770500366610,9.28743104,2106.0,2104.9,9.33562178]
[1770500366806,9.28743104,2106.2,2104.9,9.33562178]
[1770500367020,9.29221827,2106.3,2105.3,9.33017888]
[1770500367413,9.29221827,2106.3,2105.3,9.56782888]
[1770500369307,9.29221827,2106.3,2105.0,9.33017888]
[1770500369511,12.10071973,2106.3,2104.9,0.0054429]
[1770500369712,9.28743104,2106.2,2104.9,9.33562178]
[1770500369909,9.29221827,2106.3,2105.1,9.33017888]
[1770500370314,9.29221827,2106.3,2105.0,0.23768]
[1770500370315,9.29221827,2106.3,2104.9,0.0054429]
[1770500370513,9.29221827,2106.3,2104.9,9.33562178]
[1770500372117,9.29221827,2106.3,2105.1,9.33017888]
[1770500372928,9.29221827,2106.3,2105.1,9.56784888]
[1770500373118,9.29221827,2106.3,2105.3,9.33017888]
[1770500373315,0.00478723,2106.3,2105.5,9.33017888]
[1770500374518,0.00478723,2106.3,2105.5,9.56780888]
[1770500375426,0.00478723,2106.3,2105.7,9.33017888]
[1770500377220,7.11363012,2106.3,2105.7,9.33017888]
[1770500378027,7.11363012,2106.3,2105.0,0.23768]
[1770500378028,7.11363012,2106.3,2105.5,6.96872683]
[1770500381736,7.11363012,2106.3,2105.3,6.96872683]
[1770500385545,7.10884289,2106.1,2104.9,0.0054429]
[1770500385837,7.10884289,2105.9,2104.9,0.0054429]
[1770500386840,7.11884289,2105.9,2104.9,0.0054429]
[1770500387236,7.10884289,2105.7,2104.4,7.20646683]
[1770500388247,7.10884289,2105.7,2104.4,7.210613]
[1770500388842,7.10884289,2105.6,2104.4,6.972873]
[1770500389145,7.10884289,2105.5,2104.4,6.972873]
[1770500389337,7.10884289,2105.4,2104.4,6.972873]
[1770500390043,7.10884289,2105.3,2104.4,6.972873]
[1770500391649,7.10884289,2105.2,2104.4,6.972873]
[1770500393056,9.91734435,2105.2,2104.4,0.00414617]
[1770500393346,9.91734435,2105.2,2103.4,7.04422434]
[1770500393347,7.10884289,2104.9,2103.5,6.96872683]
[1770500393545,7.10884289,2105.3,2104.2,6.96872683]
[1770500394148,7.10884289,2105.3,2104.2,6.97281669]
[1770500397749,9.91734435,2105.3,2104.2,6.97281669]
[1770500397946,7.10884289,2105.2,2104.2,6.97281669]
[1770500403256,6.72852289,2105.2,2104.2,6.97281669]
[1770500403957,6.72852289,2105.2,2104.2,0.00408986]
[1770500404152,6.78051808,2104.6,2103.2,6.96872683]
[1770500404354,6.78051808,2104.4,2103.2,6.96872683]
[1770500405258,6.62662879,2104.3,2103.2,6.97333526]
[1770500409460,0.0047135,2104.4,2103.4,4.02124776]
[1770500410855,0.0047135,2104.4,2103.4,5.73778274]
[1770500411159,4.18165513,2104.7,2103.5,4.25909776]
[1770500411359,4.18165513,2104.7,2103.6,0.23784]
[1770500411563,4.18165513,2104.7,2103.7,4.02124776]
[1770500412264,0.00496269,2104.7,2103.7,4.02124776]
[1770500412467,3.42455213,2104.7,2103.7,4.02124776]
[1770500413361,3.41958944,2104.6,2103.6,3.61630964]
[1770500413556,3.41958944,2104.5,2103.6,3.37846964]
[1770500413859,3.41958944,2104.4,2103.3,3.37846964]
[1770500414363,3.41958944,2104.3,2103.3,3.37846964]
[1770500415360,3.41958944,2104.3,2103.5,3.37846964]
[1770500415560,6.2280909,2104.5,2103.5,3.37846964]
[1770500415767,3.41958944,2104.4,2103.5,3.37846964]
[1770500416661,6.2280909,2104.6,2103.5,3.61631964]
[1770500416854,3.41958944,2104.5,2103.5,3.61631964]
[1770500420564,3.41958944,2104.5,2103.7,3.37846964]
[1770500421266,3.41958944,2104.4,2103.5,3.37846964]
[1770500421965,3.41958944,2104.3,2103.5,3.37846964]
[1770500424369,6.2280909,2104.5,2103.7,3.37846964]
[1770500424663,2.81346415,2104.7,2103.7,3.37846964]
[1770500424868,2.81346415,2104.7,2103.9,3.37846964]
[1770500424869,0.00496269,2104.7,2103.9,3.37846964]
[1770500425064,5.67365566,2105.0,2104.2,3.37846964]
[1770500425065,3.41958944,2105.0,2104.2,3.37846964]
[1770500425761,3.41958944,2104.9,2104.2,3.37846964]
[1770500426161,3.42304007,2104.9,2104.2,3.37846964]
[1770500426568,0.00345063,2104.9,2104.2,3.37846964]
[1770500426764,0.00345063,2104.9,2104.2,3.61624964]